Cogmind - Beta 15 @@@ ROGUE MODE // 2025.08.06 @ 12:59:05 Player: H3-RMN Result: Destroyed by UH-8FJ(j) with Overtuned Pulse Rifle Performance ------------- Evolutions (2) 1000 Regions Visited (8) 1600 Robots Destroyed (128) 640 Value Destroyed (4316) 4316 Prototype IDs (6) 120 Alien Tech Used (0) 0 Bonus (1244) 1244 TOTAL SCORE: 8920 Bonus ------- High Alert Combat Kills 11 Follower Combat Kills 33 Entered Garrisons 200 Used RIF Installer 1000 Cogmind --------- Core Integrity 0/550 Matter 16/300 Energy 100/100 System Corruption 8% Temperature Danger (476) Movement Core (700) Ox13 Location -8/Scraptown Parts ------- > --- POWER (1) -------- (None) > --- PROPULSION (3) --- (None) > --- UTILITY (3) ------ High-capacity Storage Unit > --- WEAPON (4) ------- (None) > --- INVENTORY (20) --- Large Matter Pod (150) IFF Parser Core Analyzer Authchip [Propulsion] Shock Rifle Autogun Mini Grenade Launcher Mini Grenade Launcher CPS Tube (2) CPS Tube (2) Great Maul Peak State ------------ > --- POWER ------------ Improved Ion Engine > --- PROPULSION ------- Light Treads Light Treads Light Treads > --- UTILITY ---------- Improved Cooling System High-capacity Storage Unit Hardened Medium Armor Plating > --- WEAPON ----------- Autogun Autogun Autogun Gauss Rifle > --- INVENTORY -------- Light Treads High-capacity Matter Pod IFF Parser Core Analyzer Hardened Heavy Armor Plating Hardened Heavy Armor Plating Relay Coupler [Grunt] Relay Coupler [Grunt] Relay Coupler [Sentry] Shock Rifle Autogun Autogun Minigun Mini Grenade Launcher Mini Grenade Launcher Mini Grenade Launcher Mini Grenade Launcher Mini Grenade Launcher [Rating: 28] Favorites ----------- Power Improved Ion Engine Engine Improved Ion Engine Power Core Light Nuclear Core Propulsion Light Treads Treads Light Treads Wheel Wheel Hover Unit Aerolev Unit Utility High-capacity Storage Unit Device Improved Cooling System Storage High-capacity Storage Unit Protection Light Armor Plating Weapon Autogun Energy Gun Improved Medium Laser Ballistic Gun Autogun Launcher Mini Grenade Launcher Impact Weapon Great Maul Build | -11 -10 -9 -8 -8 -8 -8 -8 -8 ------- Run | Yrd Mat Mat Mat Gar Mat Sto Rec Scr Slots Evolved 4 | . . 2 2 . . . . . Power . | . . . . . . . . . Propulsion 1 | . . . 1 . . . . . Utility 1 | . . 1 . . . . . . Weapon 2 | . . 1 1 . . . . . Parts Attached 78 | 8 2 19 9 12 11 6 2 9 Power 9 | 1 1 2 1 . 3 1 . . Engine 8 | 1 1 2 1 . 2 1 . . Core 1 | . . . . . 1 . . . Reactor . | . . . . . . . . . Propulsion 17 | 2 . 3 2 2 4 3 . 1 Treads 12 | 1 . . 1 2 4 3 . 1 Leg . | . . . . . . . . . Wheel 4 | 1 . 2 1 . . . . . Hover 1 | . . 1 . . . . . . Flight . | . . . . . . . . . Utility 24 | 3 1 4 5 3 2 2 1 3 Device 9 | 2 . 1 2 2 2 . . . Storage 3 | 1 1 1 . . . . . . Processor . | . . . . . . . . . Hackware . | . . . . . . . . . Protection 12 | . . 2 3 1 . 2 1 3 Artifact . | . . . . . . . . . Weapon 28 | 2 . 10 1 7 2 . 1 5 Energy Gun 5 | . . 2 1 2 . . . . Energy Cannon . | . . . . . . . . . Ballistic Gun 17 | 2 . 6 . 4 2 . 1 2 Ballistic Cannon . | . . . . . . . . . Launcher 5 | . . 2 . 1 . . . 2 Special Weapon . | . . . . . . . . . Impact Weapon 1 | . . . . . . . . 1 Slashing Weapon . | . . . . . . . . . Piercing Weapon . | . . . . . . . . . Special Melee Weapon . | . . . . . . . . . Unidentified Prototypes 2 | . . 1 1 . . . . . Parts Lost 22 | . . . . 6 1 1 . 14 Power 2 | . . . . 1 . . . 1 Propulsion 7 | . . . . 3 . . . 4 Utility 4 | . . . . . . 1 . 3 Weapon 9 | . . . . 2 1 . . 6 Highest Loss Streak 9 | . . . . 2 1 1 . 9 To Critical Strikes 2 | . . . . . . . . 2 Average Backups 17 | 5 8 17 19 18 17 18 18 17 Power . | . 1 1 . . . . . . Propulsion 1 | 3 4 3 2 . . 1 1 . Utility 6 | . 1 3 4 6 7 8 8 8 Weapon 8 | . 1 9 12 11 9 9 8 7 Tool/Special . | . . . . . . . . . Unused Backups 29 | 1 1 9 2 3 . . . 13 Power 2 | . . 2 . . . . . . Propulsion 5 | 1 1 2 1 . . . . . Utility 12 | . . . 1 3 . . . 8 Weapon 8 | . . 5 . . . . . 3 Tool/Special 2 | . . . . . . . . 2 Average Slot Usage (%) 98 | . 100 99 98 99 95 99 100 98 Engine 9 | . 14 11 9 9 7 9 9 8 Treads 21 | . 14 3 9 23 24 27 27 26 Wheel 4 | . 14 18 18 3 . . . . Device 9 | . 14 15 9 9 8 9 9 8 Storage 9 | . 14 11 9 9 9 9 9 9 Protection 8 | . . 6 9 9 9 8 9 8 Energy Gun 3 | . . 6 7 8 . . . . Ballistic Gun 31 | . 28 26 27 27 35 36 36 34 Peak Build Rating 28 | 9 8 17 24 26 28 28 26 28 Average Rating 23 | 7 7 13 20 25 24 26 26 26 On Entrance 17 | . 8 8 16 24 22 28 26 26 Naked Turns . | . . . . . . . . . Heaviest Build 70 | 13 30 60 68 68 70 70 65 68 Greatest Support 60 | 20 10 20 20 60 60 60 60 60 Greatest Overweight (x) 6 | 1 2 3 3 6 1 1 1 1 Average Overweight (x) 1 | . 1 2 2 3 1 1 1 1 Largest Inventory Capacity 20 | 8 15 20 20 20 20 20 20 20 Average Capacity 19 | 7 12 18 20 20 20 20 20 20 Most Carried 20 | 8 10 20 20 20 20 20 20 20 Average Carried 18 | 5 8 17 19 19 19 20 19 19 Final Capacity 20 | 8 15 20 20 20 20 20 20 20 Final Carried 20 | 8 10 20 20 20 20 20 20 11 Class Distribution -------------------- 80% | Scavenger-Tank 8% | Tank 6% | Mutant 4% | Skirmisher Dominant Class ---------------- Mutant | -10/Materials Skirmisher | -9/Materials Scavenger-Tank | -8/Materials Scavenger-Tank | -8/Garrison Scavenger-Tank | -8/Materials Scavenger-Tank | -8/Storage Scavenger-Tank | -8/Recycling Scavenger-Tank | -8/Scraptown Resources | -11 -10 -9 -8 -8 -8 -8 -8 -8 ----------- Run | Yrd Mat Mat Mat Gar Mat Sto Rec Scr Matter Collected 3984 | 336 90 697 359 569 611 417 401 504 Remotely . | . . . . . . . . . Salvage Created 5177 | 119 109 760 393 701 641 618 798 1038 Parts 299 | 9 8 46 32 42 40 38 29 55 Haulers Intercepted 5 | . . 3 1 . . 1 . . Recyclers Shooed 6 | 1 . 2 . . . . 3 . Parts Field Recycled . | . . . . . . . . . Retrieved Matter . | . . . . . . . . . Parts Self-Destructed . | . . . . . . . . . Prevented . | . . . . . . . . . Kills | -11 -10 -9 -8 -8 -8 -8 -8 -8 ------- Run | Yrd Mat Mat Mat Gar Mat Sto Rec Scr Combat Hostiles Destroyed 90 | . 4 12 7 15 8 9 7 28 Guns 63 | . 4 10 7 15 8 9 7 3 AOE 27 | . . 2 . . . . . 25 Classes Destroyed 23 | 2 3 4 1 3 1 . 2 7 Worker 5 | . . 1 2 . . 1 . 1 Builder 3 | . . . 1 . . 1 1 . Tunneler 7 | 2 . 2 1 . 1 . 1 . Hauler 5 | . . 3 1 . . 1 . . Recycler 12 | 1 . 3 . . 3 . 5 . Operator 1 | . . 1 . . . . . . Watcher 5 | . 1 1 1 . . 2 . . Swarmer 11 | . 3 4 4 . . . . . Cutter 4 | . . . . 2 2 . . . Grunt 21 | . 1 4 1 9 . 4 2 . Duelist 2 | . . . . 1 . 1 . . Protector 1 | . . . . . . . 1 . Sentry 18 | . . 4 2 2 4 4 2 . Specialist 2 | . . . . . 2 . . . Hunter 2 | . . . . 1 . . 1 . Programmer 1 | . . . . . . . 1 . Bolteater 2 | . . . . . . . . 2 Federalist 2 | . . . . . . . . 2 Explorer 3 | . . . . . . . . 3 Ranger 3 | . . . . . . . . 3 Guru 3 | . . . . . . . . 3 Scrapper 9 | . . . . . . . . 9 Elite 6 | . . . . . . . . 6 Best Kill Streak 29 | 1 4 5 4 5 3 10 6 29 Combat Bots Only 28 | . 4 5 4 5 2 3 3 28 Max Kills in Single Turn 4 | 1 1 4 2 2 1 2 2 4 Gunslinging 1 | . . . 1 1 . 1 . . Exploded 4 | . . 2 . . . . . 4 Melee . | . . . . . . . . . Uniques/NPCs Destroyed . | . . . . . . . . . Combat | -11 -10 -9 -8 -8 -8 -8 -8 -8 -------- Run | Yrd Mat Mat Mat Gar Mat Sto Rec Scr Hostile Shots Fired 576 | . 15 41 24 110 42 22 28 294 Missed 166 | . 4 11 9 32 15 5 12 78 Hits 410 | . 11 30 15 78 27 17 16 216 Melee 32 | . . . . 5 3 . . 24 Projectile 378 | . 11 30 15 73 24 17 16 192 Critical Strikes 21 | . . . 1 5 5 . 1 9 Damage Taken 5589 | . 115 398 194 1111 424 253 244 2850 Core 636 | . 12 53 23 96 47 . 14 391 Absorbed by Shields 32 | . . . . . . . . 32 Regen/Repaired (Parts) 38 | . . . . . . 38 . . Core Remaining (%) 93 | 100 95 86 . . . . . . Volleys Fired 262 | 11 10 50 19 74 26 20 20 32 Largest 4 | 2 2 3 4 4 4 4 4 4 Hottest 125 | 40 40 105 125 125 97 97 97 99 Shots Fired 757 | 22 20 138 75 165 102 80 80 75 Gun 707 | 22 20 136 75 164 102 80 80 28 Cannon . | . . . . . . . . . Launcher 50 | . . 2 . 1 . . . 47 Special . | . . . . . . . . . Kinetic 619 | 22 20 110 57 120 102 80 80 28 Thermal 61 | . . 26 18 17 . . . . Explosive 50 | . . 2 . 1 . . . 47 Electromagnetic 27 | . . . . 27 . . . . Robot Hit Streak 19 | 4 3 19 8 10 13 13 12 6 Robot Miss Streak 6 | 2 3 4 5 3 5 6 3 3 Penetration Max 1 | . . . . . . 1 1 . Secondary Targets 15 | . . . 2 5 4 2 . 2 Max Gunslinging Chain 1 | . . . 1 1 1 1 . 1 Shots Hit Robots 406 | 13 8 83 39 78 62 54 40 29 Core Hits 279 | 4 5 55 18 34 21 24 20 98 Critical Kills 2 | . . 1 . . 1 . . . Critical Parts Destroyed . | . . . . . . . . . Critical Strikes 2 | . . 1 . . 1 . . . Destroy 2 | . . 1 . . 1 . . . Melee Attacks 1 | . . . . . . . . 1 Impact 1 | . . . . . . . . 1 Slashing . | . . . . . . . . . Piercing . | . . . . . . . . . Sneak Attacks . | . . . . . . . . . Combat Hostiles . | . . . . . . . . . Follow-up Attacks . | . . . . . . . . . Damage Inflicted 9758 | 176 102 1320 703 1197 993 889 679 3699 Guns 6198 | 176 102 1120 703 1197 993 889 679 339 Cannons . | . . . . . . . . . Explosions 3560 | . . 200 . . . . . 3360 Melee . | . . . . . . . . . Ramming . | . . . . . . . . . Kinetic 5376 | 176 102 802 509 887 993 889 679 339 Thermal 680 | . . 318 194 168 . . . . Explosive 3560 | . . 200 . . . . . 3360 Electromagnetic 142 | . . . . 142 . . . . Impact . | . . . . . . . . . Slashing . | . . . . . . . . . Piercing . | . . . . . . . . . Highest Corruption 8 | . . . . . . . . 8 Average Corruption 4 | . . . . . . . . 4 Corruption Purged . | . . . . . . . . . Corruption Blocked . | . . . . . . . . . Effects 4 | . . . . . . . . 4 Message Errors 1 | . . . . . . . . 1 Data Loss (minor) 2 | . . . . . . . . 2 Alerts 1 | . . . . . . . . 1 Overload Shots . | . . . . . . . . . Overflow Damage 76 | . . . . . . . . 76 Projectiles . | . . . . . . . . . Explosions 76 | . . . . . . . . 76 Melee . | . . . . . . . . . Knockbacks . | . . . . . . . . . Impact . | . . . . . . . . . Kinetic . | . . . . . . . . . Secondary . | . . . . . . . . . Self-Inflicted Damage 115 | . . . . . . . . 115 Shots 3 | . . . . . . . . 3 Rammed 1 | . 1 . . . . . . . Targets Rammed 1 | . 1 . . . . . . . Kicked . | . . . . . . . . . Crushed . | . . . . . . . . . Highest Temperature 464 | . . 322 218 132 252 13 . 464 Average Temperature 80 | . . 76 70 47 98 3 . 131 Received Heat Transfer 1670 | . 48 117 63 405 153 81 27 776 Effects 5 | . . 2 . . . . . 3 Energy Bleed 1 | . . 1 . . . . . . Interference 2 | . . 1 . . . . . 1 Matter Decay 1 | . . . . . . . . 1 Damage (minor) 1 | . . . . . . . . 1 Siege Activations . | . . . . . . . . . Martial Activations . | . . . . . . . . . Shielding Activations . | . . . . . . . . . Robots Disrupted . | . . . . . . . . . Combat Hostiles . | . . . . . . . . . Robots Corrupted . | . . . . . . . . . Combat Hostiles . | . . . . . . . . . Parts Fried . | . . . . . . . . . Impact Corruptions . | . . . . . . . . . Robots Melted . | . . . . . . . . . Combat Hostiles . | . . . . . . . . . Parts Melted . | . . . . . . . . . Heat Transferred 1240 | . . 463 407 370 . . . . Parts Sabotaged . | . . . . . . . . . Parts Stolen 1 | . . . . . . . . 1 Parts Stripped . | . . . . . . . . . Power Chain Reactions . | . . . . . . . . . Alert | -11 -10 -9 -8 -8 -8 -8 -8 -8 ------- Run | Yrd Mat Mat Mat Gar Mat Sto Rec Scr Maximum Alert Level 2 | . . 1 . 2 1 1 . . Low Security (%) 57 | 100 100 75 100 29 . 21 100 . Level 1 31 | . . 24 . 34 100 78 . . Level 2 11 | . . . . 35 . . . . Level 3 . | . . . . . . . . . Level 4 . | . . . . . . . . . Level 5 . | . . . . . . . . . High Security . | . . . . . . . . . Max Security . | . . . . . . . . . Peak Influence 571 | 5 105 244 118 571 348 306 95 . Initial 268 | . . 35 17 5 268 143 95 . Average 175 | . 26 81 20 328 284 239 33 . Influence Increases 2270 | 15 142 419 277 606 312 293 196 10 Destroy 0b10 Robot/C 1240 | . 80 240 140 300 160 180 140 . Destroy 0b10 Robot/NC 200 | 15 5 55 30 . 20 25 40 10 Destroy Leader 270 | . 22 78 34 20 60 56 . . Allied During Kill 7 | . . . . . . . 7 . Successful Hack 110 | . 35 16 12 14 26 . 7 . Disable Machine 105 | . . 15 30 . 30 30 . . Anti-Garrison Action 200 | . . . . 200 . . . . Destroy Structure 93 | . . 15 1 72 1 2 2 . Lose Combat Pursuer 45 | . . . 30 . 15 . . . Influence Decreases 2270 | 15 57 462 310 64 523 387 442 10 Entered New Map 710 | . . 50 25 4 283 197 151 . Time Decay 1197 | 15 57 262 157 . 230 180 291 5 Lost Part 85 | . . . . 60 10 10 . 5 Lost Ally 10 | . . . 10 . . . . . Purge Threat 268 | . . 150 118 . . . . . Squads Dispatched 7 | . 1 1 1 . 2 2 . . Investigation 3 | . 1 . . . . 2 . . Extermination . | . . . . . . . . . Reinforcement 3 | . . 1 . . 2 . . . Assault . | . . . . . . . . . Garrison 1 | . . . 1 . . . . . Intercept . | . . . . . . . . . Searches Triggered . | . . . . . . . . . Construction Impeded . | . . . . . . . . . Haulers Reinforced . | . . . . . . . . . Active Scanning Responses . | . . . . . . . . . Cargo Convoy Interrupts . | . . . . . . . . . Stealth | -11 -10 -9 -8 -8 -8 -8 -8 -8 --------- Run | Yrd Mat Mat Mat Gar Mat Sto Rec Scr Distress Signals 8 | . . 1 4 1 . 2 . . Communications Jammed . | . . . . . . . . . Distress Signals . | . . . . . . . . . Times Spotted 136 | . 13 23 15 20 8 12 6 39 Peak Tracking Total 21 | . 8 4 7 6 2 4 5 21 Tactical Retreats 4 | . . . 2 . 1 . . 1 Traps | -11 -10 -9 -8 -8 -8 -8 -8 -8 ------- Run | Yrd Mat Mat Mat Gar Mat Sto Rec Scr Traps Triggered 6 | . 1 . . 4 . 1 . . Indirectly . | . . . . . . . . . Trap Hack Attempts . | . . . . . . . . . Triggered . | . . . . . . . . . Disarmed . | . . . . . . . . . Reprogrammed . | . . . . . . . . . Reused . | . . . . . . . . . Traps Extracted . | . . . . . . . . . Installed . | . . . . . . . . . Triggered . | . . . . . . . . . Machines | -11 -10 -9 -8 -8 -8 -8 -8 -8 ---------- Run | Yrd Mat Mat Mat Gar Mat Sto Rec Scr Machines Disabled 11 | . . 1 2 2 2 2 . 2 Max in Single Turn 2 | . . 1 1 1 2 1 . 1 Garrison Relay 2 | . . . . 2 . . . . Machines Repaired . | . . . . . . . . . Machines Dismantled . | . . . . . . . . . Machines Sabotaged . | . . . . . . . . . Overloaded Fab Kills . | . . . . . . . . . Hacking | -11 -10 -9 -8 -8 -8 -8 -8 -8 --------- Run | Yrd Mat Mat Mat Gar Mat Sto Rec Scr Machines Accessed 22 | . 4 6 5 2 2 2 1 . Terminals 18 | . 4 5 3 2 2 1 1 . Fabricators . | . . . . . . . . . Repair Stations 1 | . . . . . . 1 . . Recycling Units . | . . . . . . . . . Scanalyzers 2 | . . 1 1 . . . . . Garrison Access 1 | . . . 1 . . . . . Total Hacks 80 | . 15 32 17 4 7 3 2 . Successful 51 | . 6 23 13 2 4 2 1 . Failed 29 | . 9 9 4 2 3 1 1 . Catastrophic 7 | . 3 2 1 . 1 . . . Database Lockouts . | . . . . . . . . . Manual 37 | . 15 5 4 2 6 3 2 . Terminals 54 | . 15 14 10 4 7 2 2 . Fabricators . | . . . . . . . . . Repair Stations 1 | . . . . . . 1 . . Recycling Units . | . . . . . . . . . Scanalyzers 24 | . . 18 6 . . . . . Garrison Access 1 | . . . 1 . . . . . Terminal Hacks 21 | . 5 4 4 2 4 1 1 . Part Schematic 5 | . 2 . . . 2 . 1 . Robot Schematic 1 | . 1 . . . . . . . Robot Analysis 4 | . 2 . . . 2 . . . Prototype ID Bank 2 | . . . 1 . . 1 . . Emergency Access Points 1 | . . . . 1 . . . . Unreport Threat 3 | . . 1 2 . . . . . Locate Traps 1 | . . 1 . . . . . . Hauler Manifests 1 | . . 1 . . . . . . Registered Components 1 | . . 1 . . . . . . Zone Layout 1 | . . . 1 . . . . . Patrol Navigation 1 | . . . . 1 . . . . Fabricator Hacks . | . . . . . . . . . Repair Station Hacks . | . . . . . . . . . Recycling Unit Hacks . | . . . . . . . . . Scanalyzer 24 | . . 18 6 . . . . . Insert Component 12 | . . 9 3 . . . . . Analyze 12 | . . 9 3 . . . . . Garrison Access Hacks 1 | . . . 1 . . . . . Unlock Access 1 | . . . 1 . . . . . Unauthorized Hacks 5 | . 1 1 2 . . 1 . . Terminals 4 | . 1 1 2 . . . . . Assimilate 1 | . . 1 . . . . . . Botnet 3 | . 1 . 2 . . . . . Fabricators . | . . . . . . . . . Repair Stations 1 | . . . . . . 1 . . Patch 1 | . . . . . . 1 . . Recycling Units . | . . . . . . . . . Scanalyzers . | . . . . . . . . . Garrison Access . | . . . . . . . . . Data Cores Recovered . | . . . . . . . . . Used . | . . . . . . . . . Hacking Detections 20 | . 4 6 4 2 2 1 1 . Full Trace Events . | . . . . . . . . . Feedback Events . | . . . . . . . . . Feedback Blocked . | . . . . . . . . . Robot Schematics Acquired 1 | . 1 . . . . . . . Robots Built . | . . . . . . . . . Authchips . | . . . . . . . . . Time . | . . . . . . . . . Total Robot Build Rating . | . . . . . . . . . Part Schematics Acquired 18 | . 2 9 3 . 2 . 1 1 Parts Built . | . . . . . . . . . Authchips . | . . . . . . . . . Time . | . . . . . . . . . Total Part Build Rating . | . . . . . . . . . Parts Repaired . | . . . . . . . . . Time . | . . . . . . . . . Parts Recycled . | . . . . . . . . . Recycled Matter . | . . . . . . . . . Retrieved Matter . | . . . . . . . . . Retrieved Components . | . . . . . . . . . Parts Scanalyzed 12 | . . 9 3 . . . . . Part Schematics Acquired 12 | . . 9 3 . . . . . Parts Damaged . | . . . . . . . . . Bothacking | -11 -10 -9 -8 -8 -8 -8 -8 -8 ------------ Run | Yrd Mat Mat Mat Gar Mat Sto Rec Scr Used RIF Installer 2 | . . . . 2 . . . . Patrol Navigation 1 | . . . . 1 . . . . Robots Hacked . | . . . . . . . . . Non-combat . | . . . . . . . . . Combat . | . . . . . . . . . Robot Hacks Applied . | . . . . . . . . . Relay Couplers Released 9 | . . . . 9 . . . . Machine Destruction 9 | . . . . 9 . . . . Fabnet Peak Effective % . | . . . . . . . . . Robots Rewired 5 | . . . . . . . 5 . Allies Hacked . | . . . . . . . . . Hacks Repelled . | . . . . . . . . . Allies | -11 -10 -9 -8 -8 -8 -8 -8 -8 -------- Run | Yrd Mat Mat Mat Gar Mat Sto Rec Scr Total Allies 6 | . . 1 . . . . 5 . Largest Group 5 | . . 1 1 . . . 5 5 Highest-Rated Group 101 | . . 10 10 . . . 101 101 Highest-Rated Ally 27 | . . 10 10 . . . 27 27 Total Orders . | . . . . . . . . . Ally Attacks 17 | . . . . . . . 3 14 Total Damage 216 | . . . . . . . 46 170 Kills 2 | . . . . . . . 1 1 Allies Corrupted . | . . . . . . . . . Allies Melted . | . . . . . . . . . Intel | -11 -10 -9 -8 -8 -8 -8 -8 -8 ------- Run | Yrd Mat Mat Mat Gar Mat Sto Rec Scr Active Infowar (turns) 1468 | 74 260 732 90 . 312 . . . Terrain 389 | 73 . 316 . . . . . . Structural 312 | . . . . . 312 . . . Seismic 1083 | 1 260 732 90 . . . . . Robot Analysis Total 4 | . 2 . . . 2 . . . Derelict Logs Recovered . | . . . . . . . . . Drone Launches . | . . . . . . . . . Drone Recoveries . | . . . . . . . . . Exploration | -11 -10 -9 -8 -8 -8 -8 -8 -8 ------------- Run | Yrd Mat Mat Mat Gar Mat Sto Rec Scr Turns Passed 6786 | 120 260 732 388 1528 495 375 867 2021 Spaces Moved 2973 | 70 209 428 244 635 158 129 307 793 Core 3 | 3 . . . . . . . . Treads 1737 | 1 . . . 349 158 129 307 793 Legs . | . . . . . . . . . Wheels 1233 | 66 209 428 244 286 . . . . Hover . | . . . . . . . . . Flight . | . . . . . . . . . Fastest Speed 50 | 50 95 110 110 125 240 240 240 240 Average Speed 191 | 89 104 114 121 205 240 240 240 240 Slowest Speed 240 | 160 110 125 125 240 240 240 240 240 Overloaded Moves . | . . . . . . . . . Propulsion Burnouts . | . . . . . . . . . Robots Hopped . | . . . . . . . . . Potential Cave-ins . | . . . . . . . . . Cave-ins Triggered . | . . . . . . . . . Exploration Rate (%) 38 | 4 41 42 29 74 11 33 58 52 Regions Visited 8 Branch Regions 3 Pre-discovered Areas . | . . . . . . . . . Known Exits Taken 1 | . . . 1 . . . . . Unknown Exits Taken 6 | 1 1 1 . . 1 1 1 . Scrap Searched 5 | . . . . . . . . 5 Spaces Dug 18 | . . . . . . . . 18 Terrain Destroyed 111 | . . 15 . 7 . . 2 87 Melee . | . . . . . . . . . Projectile 2 | . . . . . . . 2 . AOE 109 | . . 15 . 7 . . . 87 Terrain Rammed . | . . . . . . . . . Walls Destroyed . | . . . . . . . . . Machines Disabled . | . . . . . . . . . Actions | -11 -10 -9 -8 -8 -8 -8 -8 -8 --------- Run | Yrd Mat Mat Mat Gar Mat Sto Rec Scr Total 3627 | 103 233 580 304 767 229 159 402 850 Wait 92 | 4 5 32 17 6 19 . 8 1 Move 2966 | 69 208 427 244 634 157 128 306 793 Hop . | . . . . . . . . . Pick Up 61 | 10 4 24 5 11 3 . 1 3 Fast Attach 20 | 6 . 3 1 1 7 1 . 1 Attach 20 | 1 . 2 1 8 2 . . 6 Detach . | . . . . . . . . . Swap 58 | 1 2 18 7 12 6 5 2 5 Drop 74 | 1 3 24 10 11 9 5 3 8 Fire 262 | 11 10 50 19 74 26 20 20 32 Melee 1 | . . . . . . . . 1 Ram 1 | . 1 . . . . . . . Kick . | . . . . . . . . . Crush . | . . . . . . . . . Escape Stasis 10 | . . . . 10 . . . . Rewire 62 | . . . . . . . 62 . Trap . | . . . . . . . . . Miscellaneous . | . . . . . . . . . Route ------- -11/Scrapyard -10/Materials -9/Materials (discovered 2 exits: *Mat x2) -8/Materials -8/Garrison (discovered 3 exits: *Mat x3) -8/Materials -8/Storage -8/Recycling -8/Scraptown History --------- Turn | Location | Event 11 | -11/Scrapyard | Discovered new exit (range 15) 121 | -11/Scrapyard | Entered Materials 307 | -10/Materials | Build established: Mutant 334 | -10/Materials | Discovered new exit (range 10) 381 | -10/Materials | Entered another Materials area 381 | -9/Materials | Evolved 2 slots: Utility x1, Weapon x1 679 | -9/Materials | Build established: Skirmisher 855 | -9/Materials | Discovered new exit (range 8) 1026 | -9/Materials | Discovered new exit (range 13) 1113 | -9/Materials | Entered another Materials area 1113 | -8/Materials | Accompanied by 1 ally 1113 | -8/Materials | Evolved 2 slots: Propulsion x1, Weapon x1 1407 | -8/Materials | Build established: Scavenger-Tank 1445 | -8/Materials | Garrison activated, responded to threat 1501 | -8/Materials | Identified exit to Garrison 1501 | -8/Materials | Entered Garrison 1569 | -8/Garrison | Triggered checkpoint 1570 | -8/Garrison | Triggered checkpoint 1691 | -8/Garrison | Triggered checkpoint 1755 | -8/Garrison | Discovered new exit (range 10) 2026 | -8/Garrison | Discovered new exit (range 10) 2089 | -8/Garrison | Installed Relay Interface Framework 2152 | -8/Garrison | Garrison Relay disabled 2488 | -8/Garrison | Garrison Relay disabled 2699 | -8/Garrison | Triggered checkpoint 2848 | -8/Garrison | Expanded RIF knowledge: Patrol Navigation 2938 | -8/Garrison | Discovered new exit (range 10) 3029 | -8/Garrison | Entered Materials 3106 | -8/Materials | Discovered new exit (range 11) 3524 | -8/Materials | Entered Storage 3889 | -8/Storage | Used back door to open Recycling access 3889 | -8/Storage | Discovered new exit (range 5) 3899 | -8/Storage | Entered Recycling 4698 | -8/Recycling | Scanned before Scraplab entrance 4734 | -8/Recycling | Entered Scraplab 4753 | -8/Recycling | Discovered new exit (range 3) 4766 | -8/Recycling | Entered Scraptown 4766 | -8/Scraptown | Accompanied by 5 allies 4874 | -8/Scraptown | Visited Red Mages 4966 | -8/Scraptown | Visited Fellowship of the Rings 4990 | -8/Scraptown | Visited Cyclists 5040 | -8/Scraptown | Visited Cave Peace 5062 | -8/Scraptown | Visited IN-MT5's Study 5160 | -8/Scraptown | Heard Great Nut preacher, LISTEN AND RECITE! 5692 | -8/Scraptown | Turned away by UFD registrar 5894 | -8/Scraptown | Visited Bundlers 6668 | -8/Scraptown | Attacked by Scraptown defenders 6720 | -8/Scraptown | Core integrity fell below 50% 6723 | -8/Scraptown | Lost 5 allies 6770 | -8/Scraptown | Lost 9 parts (1p4n2u2w) 6777 | -8/Scraptown | Core integrity fell below 20% 6787 | -8/Scraptown | Destroyed by UH-8FJ(j) with Overtuned Pulse Rifle Last Messages --------------- 06778_ The unstable cave ceiling collapses. 06782_ 0K-1MB(x) destroyed. 06783_ The unstable cave ceiling collapses. 06783_ Critical hit (Burn: +50). 06784_ Hrd. Heavy Armor Plating destroyed. 06784_ Autogun destroyed. 06784_ S1-9QB(j) destroyed. 06784_ EG-16Q(j) destroyed. 06784_ F3-XJP(j) destroyed. 06784_ LY-TDO(j) destroyed. 06785_ Overheating: Matter decay (-1). 06785_ P1-OE1(j) cannibalizes Scrap Suit to repair Mak. Microdissipator Network. 06785_ The unstable cave ceiling collapses. 06785_ Minigun destroyed. 06785_ Mni. Grenade Launcher destroyed. 06785_ Critical hit (Burn: +50). 06786_ Overheating: Mni. Grenade Launcher damaged (-2). 06786_ Mni. Grenade Launcher destroyed. Map ----- +----------------------------------------------------+ | " | | " " ###### ########### ##########? | | " #????# #?????????## ##?????????? | | """"" #????" "?????#????# ########???? | | ?#### #??? " " ????? ??# """"""""#??? | | ????### #""" ""#??" "??### ### " ""#??? | | ??????# #""" "#? " " ?#"" """ "#??? | | ??????# #""" "#?"""" """"?#" """ " ""#??? | | ??????# #"" "#???## ##???#" " """"""""#??? | | ??????# #" "#????? ?????#" ##"""###???? | | ??????# #?"" ""#????? ?????#" "" " #?####?????? | | ??????# #?## ##?????? ?????#" " #??##?#????? | | ??????# #??? ???????? ?????#"""""" #?# ????? | | ??????# #???#???????? ?????####### #?# "" "" ?? | | ?????## ##??????????? ???????????# #?# ""X"" #? | | ?????# ############??########### #?# """"" #? | | ?????# #?# """ #? | | ?????# #?# " ?? | | ?????# ############??##### #= #?# ???? | | ?????## ##????????????????# [%!= ?# ?????? | | ?###### ########?????????? !=%!! ## ######## | | """""" """""""#??????##### jj%* | | """""" " "#?????## ; ![ | | """"" !![ "#????## % j | | " " ![= "#????#; %!&% % [ [! | | " ][ "#?????# =@[=!= [% [%! | | """ " " !=/ "#?????# =%%[ ! *########### | | """"""" " !! "#???? !*%*= # #????????? | | ####### " =/* "#???## *%! # ##????###### | | ####### " "#????# [ #????# | | """"""" """" ""#????## " p ?????# | | """"" " #### ###????? # # # #?????# | | " " #### ###?????####### # #?????# | | " " """" ""#???????????? = #?????# | | " "############## # #?????# | | """" " " "" "##= [ #""" """ #?????# | | " " "" "##! #" " "%" # #?????# | | "" " " "##[!!]# ] ] # #?????# | | " " " ""##*!]!# #?????###### | | """ " " """""## !! # # #??????????? | | " " """""""####[## # #??????????? | | " " """"""??#""[ # #??????????? | | """ " ######??#" ! # ############ | | " #???????#""!= # | | """ " #????""?# ]!*!! # | | "" " #??? "##" " " # | | #?? "##"" "" """" " # | | " " #? "################# | | " #" "#????????## | | """"""" #" "#????????# | +----------------------------------------------------+ Best States ------------- Heat Dissipation 58 Energy Generation 14 Energy Capacity 265 Matter Stores 300 Matter Capacity 300 Sight Range 16 Terrain Scan Range 16 Terrain Scan Density 10 Armor Coverage 600 Evasion (%) 44 Recoil Reduction 3 Authchip Count 1 Item Schematics ----------------- Huge Storage Unit | -10/Materials | Hacked Hcp. Storage Unit | -10/Materials | Hacked Med. Armor Plating | -9/Materials | Scanalyzed Mni. Grenade Launcher | -9/Materials | Scanalyzed Hcp. Matter Pod | -9/Materials | Scanalyzed Lgt. Assault Rifle | -9/Materials | Scanalyzed Wheel | -9/Materials | Scanalyzed Spread Laser | -9/Materials | Scanalyzed Lgt. Treads | -9/Materials | Scanalyzed Ion Engine | -9/Materials | Scanalyzed Hvy. EM Pulse Gun | -9/Materials | Scanalyzed Minigun | -8/Materials | Scanalyzed Shock Rifle | -8/Materials | Scanalyzed Lrg. Storage Unit | -8/Materials | Scanalyzed Arm. Treads | -8/Materials | Hacked Cooling System | -8/Materials | Hacked Autogun | -8/Recycling | Hacked IN-MT5's Pitchfork "Insurrection" | -8/Scraptown | Archive Robot Schematics ------------------ M-13 Machinist | -10/Materials | Hacked Fabricated ------------ Nothing Repaired ---------- Nothing Alien Tech Used ----------------- None Achievements -------------- None Challenges ------------ None Game ------ Seed FlakCompositeJetlance Manual? 0 Play Time 00:53:42 Cumulative 760.6 hours Start 2025.08.06 @ 12:06:19 End 2025.08.06 @ 12:59:05 Sessions 1 Manual Loads 0 Difficulty Rogue Special Mode None Game No. 288 Rogue 284 Adventurer 4 Explorer 0 Win Type - Total 13 Types 7/1/1/1/0/1/0/1/0/1 Lore% 94 Gallery% 89 Achievement% 87 Wizard Run 0 Options --------- Layout 2 ASCII 0 Keyboard 0 Movement Numpad Keybinds 0 Fullscreen 2 Font 24/Smallcaps Map View 50x44 Zoom Use 0% Tactical HUD 1 Map Filters SHIFT_HUE(80) Filters SHIFT_HUE(280) Steam X RUN: 4963fc74-7773-4f41-91e2-34e75dbdec4a